Cogmind - Beta 15 @@@ ROGUE MODE // 2025.08.17 @ 22:38:54 Player: McSaucyNugget Result: Destroyed by D-53 Grenadier with Mini Grenade Launcher Performance ------------- Evolutions (0) 0 Regions Visited (4) 800 Robots Destroyed (28) 140 Value Destroyed (388) 388 Prototype IDs (1) 20 Alien Tech Used (0) 0 Bonus (0) 0 TOTAL SCORE: 1348 Bonus ------- None Cogmind --------- Core Integrity 0/250 Matter 295/300 Energy 94/100 System Corruption 0% Temperature Cool (0) Movement Core (1400) Ox27 Location -9/Mines Parts ------- > --- POWER (1) -------- (None) > --- PROPULSION (2) --- (None) > --- UTILITY (2) ------ Improved Heat Sink Huge Storage Unit > --- WEAPON (2) ------- Particle Gun > --- INVENTORY (25) --- Light Nuclear Core Light Treads Light Treads Wheel Wheel Wheel Large Matter Pod (150) Improved Terrain Scanner Terrain Scan Processor Light Armor Plating Decoy Drone Bay Particle Gun Particle Gun Particle Gun Particle Gun Particle Gun Assault Rifle Assault Rifle Light Assault Rifle Grenade Launcher Grenade Launcher Mining Laser Peak State ------------ > --- POWER ------------ Cooled Ion Engine > --- PROPULSION ------- Wheel Compact Wheel > --- UTILITY ---------- Improved Heat Sink Huge Storage Unit > --- WEAPON ----------- Particle Gun Assault Rifle > --- INVENTORY -------- Light Nuclear Core Light Treads Light Treads Light Treads Wheel Wheel Wheel Large Matter Pod Improved Terrain Scanner Terrain Scan Processor Light Armor Plating Decoy Drone Bay Particle Gun Particle Gun Particle Gun Particle Gun Particle Gun Assault Rifle Assault Rifle Light Assault Rifle Grenade Launcher Grenade Launcher Mining Laser [Rating: 16] Favorites ----------- Power Cooled Ion Engine Engine Cooled Ion Engine Propulsion Compact Wheel Treads Light Treads Wheel Compact Wheel Utility Hardened Light Armor Plating Device Improved Heat Sink Storage Huge Storage Unit Protection Hardened Light Armor Plating Weapon Light Assault Rifle Energy Gun Particle Gun Ballistic Gun Light Assault Rifle Build | -11 -10 -10 -10 -9 ------- Run | Yrd Mat Min Exi Min Slots Evolved . | . . . . . Power . | . . . . . Propulsion . | . . . . . Utility . | . . . . . Weapon . | . . . . . Parts Attached 17 | 6 8 2 . 1 Power 3 | 1 2 . . . Engine 3 | 1 2 . . . Core . | . . . . . Reactor . | . . . . . Propulsion 6 | 2 2 2 . . Treads 3 | 2 . 1 . . Leg . | . . . . . Wheel 3 | . 2 1 . . Hover . | . . . . . Flight . | . . . . . Utility 5 | 1 4 . . . Device 1 | . 1 . . . Storage 3 | 1 2 . . . Processor . | . . . . . Hackware . | . . . . . Protection 1 | . 1 . . . Artifact . | . . . . . Weapon 3 | 2 . . . 1 Energy Gun 1 | . . . . 1 Energy Cannon . | . . . . . Ballistic Gun 2 | 2 . . . . Ballistic Cannon . | . . . . . Launcher . | . . . . . Special Weapon . | . . . . . Impact Weapon . | . . . . . Slashing Weapon . | . . . . . Piercing Weapon . | . . . . . Special Melee Weapon . | . . . . . Unidentified Prototypes 1 | . 1 . . . Parts Lost 7 | . . 1 . 6 Power 1 | . . . . 1 Propulsion 4 | . . 1 . 3 Utility 1 | . . . . 1 Weapon 1 | . . . . 1 Highest Loss Streak 6 | . . 1 . 6 To Critical Strikes . | . . . . . Average Backups 16 | 2 8 21 24 23 Power 1 | . 1 2 1 1 Propulsion 4 | 1 1 5 6 5 Utility 3 | . 1 4 5 5 Weapon 7 | . 3 9 11 11 Tool/Special . | . . . . . Unused Backups 23 | . 3 1 . 19 Power 1 | . . . . 1 Propulsion 5 | . 1 . . 4 Utility 5 | . . . . 5 Weapon 12 | . 2 1 . 9 Tool/Special . | . . . . . Average Slot Usage (%) 98 | . 96 100 100 100 Engine 13 | . 13 14 14 14 Treads 5 | . 14 . . . Wheel 21 | . 12 27 28 28 Device 1 | . 4 . . . Storage 14 | . 14 14 14 14 Protection 11 | . 7 14 14 13 Ballistic Gun 27 | . 27 28 28 27 Peak Build Rating 16 | 6 12 15 15 16 Average Rating 11 | 4 8 13 14 14 On Entrance 9 | . 6 12 15 15 Naked Turns . | . . . . . Heaviest Build 96 | 13 96 96 96 96 Greatest Support 40 | 40 40 26 10 10 Greatest Overweight (x) 9 | . 6 9 9 9 Average Overweight (x) 4 | . 1 4 9 9 Largest Inventory Capacity 25 | 8 25 25 25 25 Average Capacity 19 | 7 11 25 25 25 Most Carried 25 | 4 18 25 25 25 Average Carried 17 | 2 8 22 24 24 Final Capacity 25 | 8 25 25 25 25 Final Carried 25 | 4 18 25 25 23 Class Distribution -------------------- 100% | Mutant Dominant Class ---------------- Mutant | -10/Materials Mutant | -10/Mines Mutant | -10/Exiles Mutant | -9/Mines Resources | -11 -10 -10 -10 -9 ----------- Run | Yrd Mat Min Exi Min Matter Collected 875 | 206 362 307 . . Remotely . | . . . . . Salvage Created 697 | . 377 320 . . Parts 62 | . 32 30 . . Haulers Intercepted . | . . . . . Recyclers Shooed 1 | . . 1 . . Parts Field Recycled . | . . . . . Retrieved Matter . | . . . . . Parts Self-Destructed . | . . . . . Prevented . | . . . . . Kills | -11 -10 -10 -10 -9 ------- Run | Yrd Mat Min Exi Min Combat Hostiles Destroyed 19 | . 9 10 . . Guns 19 | . 9 10 . . Classes Destroyed 6 | . 4 2 . . Worker 5 | . 3 2 . . Tunneler 2 | . . 2 . . Recycler 1 | . . 1 . . Watcher 1 | . 1 . . . Swarmer 13 | . 3 10 . . Grunt 6 | . 6 . . . Best Kill Streak 6 | . 5 6 . . Combat Bots Only 5 | . 5 3 . . Max Kills in Single Turn 1 | . 1 1 . . Gunslinging . | . . . . . Exploded . | . . . . . Melee . | . . . . . Uniques/NPCs Destroyed . | . . . . . Combat | -11 -10 -10 -10 -9 -------- Run | Yrd Mat Min Exi Min Hostile Shots Fired 104 | . 41 51 . 12 Missed 31 | . 15 14 . 2 Hits 73 | . 26 37 . 10 Projectile 73 | . 26 37 . 10 AOE 12 | . . . . 12 Damage Taken 979 | . 267 316 . 396 Core 254 | . 58 58 . 138 Absorbed by Shields . | . . . . . Core Remaining (%) 100 | 100 . . . . Volleys Fired 103 | . 62 38 . 3 Largest 2 | . 2 2 . 1 Hottest 65 | . 40 40 . 65 Shots Fired 203 | . 124 76 . 3 Gun 203 | . 124 76 . 3 Cannon . | . . . . . Launcher . | . . . . . Special . | . . . . . Kinetic 200 | . 124 76 . . Thermal 3 | . . . . 3 Explosive . | . . . . . Electromagnetic . | . . . . . Robot Hit Streak 10 | . 10 7 . . Robot Miss Streak 4 | . 4 3 . 4 Penetration Max . | . . . . . Secondary Targets 4 | . . 4 . . Max Gunslinging Chain 1 | . . 1 . . Shots Hit Robots 116 | . 74 42 . . Core Hits 44 | . 25 19 . . Critical Kills . | . . . . . Critical Parts Destroyed . | . . . . . Critical Strikes . | . . . . . Melee Attacks . | . . . . . Impact . | . . . . . Slashing . | . . . . . Piercing . | . . . . . Sneak Attacks . | . . . . . Combat Hostiles . | . . . . . Follow-up Attacks . | . . . . . Damage Inflicted 1206 | . 788 402 . 16 Guns 1206 | . 788 402 . 16 Cannons . | . . . . . Explosions . | . . . . . Melee . | . . . . . Ramming . | . . . . . Kinetic 1190 | . 788 402 . . Thermal 16 | . . . . 16 Explosive . | . . . . . Electromagnetic . | . . . . . Impact . | . . . . . Slashing . | . . . . . Piercing . | . . . . . Highest Corruption . | . . . . . Average Corruption . | . . . . . Corruption Purged . | . . . . . Corruption Blocked . | . . . . . Overload Shots . | . . . . . Overflow Damage . | . . . . . Projectiles . | . . . . . Explosions . | . . . . . Melee . | . . . . . Knockbacks . | . . . . . Impact . | . . . . . Kinetic . | . . . . . Secondary . | . . . . . Self-Inflicted Damage . | . . . . . Shots . | . . . . . Rammed . | . . . . . Targets Rammed . | . . . . . Kicked . | . . . . . Crushed . | . . . . . Highest Temperature 20 | . 20 12 . . Average Temperature 6 | . 8 5 . . Received Heat Transfer 108 | . 108 . . . Siege Activations . | . . . . . Martial Activations . | . . . . . Shielding Activations . | . . . . . Robots Disrupted . | . . . . . Combat Hostiles . | . . . . . Robots Corrupted . | . . . . . Combat Hostiles . | . . . . . Parts Fried . | . . . . . Impact Corruptions . | . . . . . Robots Melted . | . . . . . Combat Hostiles . | . . . . . Parts Melted . | . . . . . Heat Transferred 37 | . . . . 37 Parts Sabotaged . | . . . . . Parts Stolen . | . . . . . Parts Stripped . | . . . . . Power Chain Reactions . | . . . . . Alert | -11 -10 -10 -10 -9 ------- Run | Yrd Mat Min Exi Min Maximum Alert Level . | . . . . . Low Security (%) 100 | 100 100 100 . 100 Level 1 . | . . . . . Level 2 . | . . . . . Level 3 . | . . . . . Level 4 . | . . . . . Level 5 . | . . . . . High Security . | . . . . . Max Security . | . . . . . Peak Influence 117 | . 117 110 . . Initial . | . . . . . Average 27 | . 33 32 . . Influence Increases 596 | . 326 270 . . Destroy 0b10 Robot/C 380 | . 180 200 . . Destroy 0b10 Robot/NC 45 | . 20 25 . . Destroy Leader 82 | . 52 30 . . Successful Hack 14 | . 14 . . . Select Force Hacks 60 | . 60 . . . Lose Combat Pursuer 15 | . . 15 . . Influence Decreases 596 | . 326 254 16 . Entered New Map 16 | . . . 16 . Time Decay 580 | . 326 254 . . Squads Dispatched 3 | . 3 . . . Investigation 2 | . 2 . . . Extermination . | . . . . . Reinforcement 1 | . 1 . . . Assault . | . . . . . Garrison . | . . . . . Intercept . | . . . . . Searches Triggered . | . . . . . Construction Impeded . | . . . . . Haulers Reinforced . | . . . . . Active Scanning Responses . | . . . . . Cargo Convoy Interrupts . | . . . . . Stealth | -11 -10 -10 -10 -9 --------- Run | Yrd Mat Min Exi Min Distress Signals . | . . . . . Communications Jammed . | . . . . . Distress Signals . | . . . . . Times Spotted 27 | . 13 12 . 2 Peak Tracking Total 5 | . 5 3 . 2 Tactical Retreats 1 | . . 1 . . Traps | -11 -10 -10 -10 -9 ------- Run | Yrd Mat Min Exi Min Traps Triggered 5 | . 5 . . . Indirectly . | . . . . . Trap Hack Attempts . | . . . . . Triggered . | . . . . . Disarmed . | . . . . . Reprogrammed . | . . . . . Reused . | . . . . . Traps Extracted . | . . . . . Installed . | . . . . . Triggered . | . . . . . Machines | -11 -10 -10 -10 -9 ---------- Run | Yrd Mat Min Exi Min Machines Disabled . | . . . . . Max in Single Turn . | . . . . . Machines Repaired . | . . . . . Machines Dismantled . | . . . . . Machines Sabotaged . | . . . . . Overloaded Fab Kills . | . . . . . Hacking | -11 -10 -10 -10 -9 --------- Run | Yrd Mat Min Exi Min Machines Accessed 10 | . 7 1 2 . Terminals 5 | . 5 . . . Fabricators . | . . . . . Repair Stations . | . . . . . Recycling Units 2 | . 2 . . . Scanalyzers . | . . . . . Garrison Access . | . . . . . Total Hacks 16 | . 13 1 2 . Successful 13 | . 10 1 2 . Failed 3 | . 3 . . . Catastrophic . | . . . . . Database Lockouts . | . . . . . Manual 12 | . 12 . . . Terminals 11 | . 11 . . . Fabricators . | . . . . . Repair Stations . | . . . . . Recycling Units 2 | . 2 . . . Scanalyzers . | . . . . . Garrison Access . | . . . . . Terminal Hacks 5 | . 2 1 2 . Record 2 | . . . 2 . Open Door 1 | . . 1 . . Zone Layout 2 | . 2 . . . Fabricator Hacks . | . . . . . Repair Station Hacks . | . . . . . Recycling Unit Hacks . | . . . . . Scanalyzer . | . . . . . Garrison Access Hacks . | . . . . . Unauthorized Hacks 7 | . 7 . . . Terminals 5 | . 5 . . . Skim 5 | . 5 . . . Fabricators . | . . . . . Repair Stations . | . . . . . Recycling Units 2 | . 2 . . . Tunnel 2 | . 2 . . . Scanalyzers . | . . . . . Garrison Access . | . . . . . Data Cores Recovered . | . . . . . Used . | . . . . . Hacking Detections 4 | . 4 . . . Full Trace Events . | . . . . . Feedback Events . | . . . . . Feedback Blocked . | . . . . . Robot Schematics Acquired . | . . . . . Robots Built . | . . . . . Authchips . | . . . . . Time . | . . . . . Total Robot Build Rating . | . . . . . Part Schematics Acquired . | . . . . . Parts Built . | . . . . . Authchips . | . . . . . Time . | . . . . . Total Part Build Rating . | . . . . . Parts Repaired . | . . . . . Time . | . . . . . Parts Recycled . | . . . . . Recycled Matter . | . . . . . Retrieved Matter . | . . . . . Retrieved Components . | . . . . . Parts Scanalyzed . | . . . . . Part Schematics Acquired . | . . . . . Parts Damaged . | . . . . . Bothacking | -11 -10 -10 -10 -9 ------------ Run | Yrd Mat Min Exi Min Used RIF Installer . | . . . . . Robots Hacked . | . . . . . Non-combat . | . . . . . Combat . | . . . . . Robot Hacks Applied . | . . . . . Relay Couplers Released . | . . . . . Fabnet Peak Effective % . | . . . . . Robots Rewired . | . . . . . Allies Hacked . | . . . . . Hacks Repelled . | . . . . . Allies | -11 -10 -10 -10 -9 -------- Run | Yrd Mat Min Exi Min Total Allies 1 | . . 1 . . Largest Group 1 | . . 1 1 . Highest-Rated Group 31 | . . 31 31 . Highest-Rated Ally 31 | . . 31 31 . Total Orders . | . . . . . Ally Attacks . | . . . . . Total Damage . | . . . . . Kills . | . . . . . Allies Corrupted . | . . . . . Allies Melted . | . . . . . Intel | -11 -10 -10 -10 -9 ------- Run | Yrd Mat Min Exi Min Active Infowar (turns) . | . . . . . Robot Analysis Total . | . . . . . Derelict Logs Recovered 2 | . . 2 . . Drone Launches . | . . . . . Drone Recoveries . | . . . . . Exploration | -11 -10 -10 -10 -9 ------------- Run | Yrd Mat Min Exi Min Turns Passed 2948 | 92 1127 858 516 355 Spaces Moved 1517 | 53 567 496 240 161 Core 6 | 4 2 . . . Treads 282 | 49 233 . . . Legs . | . . . . . Wheels 1229 | . 332 496 240 161 Hover . | . . . . . Flight . | . . . . . Fastest Speed 50 | 50 115 135 215 215 Average Speed 169 | 151 157 148 215 215 Slowest Speed 350 | 160 350 215 215 215 Overloaded Moves . | . . . . . Propulsion Burnouts . | . . . . . Robots Hopped . | . . . . . Potential Cave-ins . | . . . . . Cave-ins Triggered . | . . . . . Exploration Rate (%) 55 | 5 75 99 61 39 Regions Visited 4 Branch Regions 3 Pre-discovered Areas 6 | . 2 3 1 . Known Exits Taken . | . . . . . Unknown Exits Taken 4 | 1 1 1 1 . Scrap Searched 3 | . . 3 . . Spaces Dug . | . . . . . Terrain Destroyed . | . . . . . Melee . | . . . . . Projectile . | . . . . . AOE . | . . . . . Terrain Rammed . | . . . . . Walls Destroyed . | . . . . . Machines Disabled . | . . . . . Actions | -11 -10 -10 -10 -9 --------- Run | Yrd Mat Min Exi Min Total 1706 | 62 688 548 241 167 Wait 16 | . 14 2 . . Move 1513 | 52 566 495 239 161 Hop . | . . . . . Pick Up 32 | 4 19 8 1 . Fast Attach 20 | 6 14 . . . Attach 6 | . 2 2 . 2 Detach 3 | . 2 1 . . Swap 5 | . 3 1 . 1 Drop 8 | . 6 1 1 . Fire 103 | . 62 38 . 3 Melee . | . . . . . Ram . | . . . . . Kick . | . . . . . Crush . | . . . . . Escape Stasis . | . . . . . Rewire . | . . . . . Trap . | . . . . . Miscellaneous . | . . . . . Route ------- -11/Scrapyard -10/Materials (discovered 4 exits: [*Mat x2] / *Min x2) -10/Mines (discovered 4 exits: [*Mat x2] / *Exi / [*Sub]) -10/Exiles -9/Mines (discovered 1 exit: [*Mat]) History --------- Turn | Location | Event 5 | -11/Scrapyard | Discovered new exit (range 15) 93 | -11/Scrapyard | Entered Materials 333 | -10/Materials | Build established: Mutant 493 | -10/Materials | Discovered new exit (range 3) 1007 | -10/Materials | Discovered new exit (range 15) 1043 | -10/Materials | Discovered new exit (range 16) 1062 | -10/Materials | Learned 4 Subcaves zone layouts 1124 | -10/Materials | Learned 4 Subcaves zone layouts 1145 | -10/Materials | Discovered new exit (range 16) 1175 | -10/Materials | Learned location of 1 exit from Recycling 1215 | -10/Materials | Learned 4 Recycling zone layouts 1220 | -10/Materials | Entered Mines 1306 | -10/Mines | Discovered new exit (range 7) 1564 | -10/Mines | Discovered new exit (range 6) 1578 | -10/Mines | YI-UF0 nonchalantly dropped a Grenade Launcher on the ground 1610 | -10/Mines | Discovered new exit (range 5) 1650 | -10/Mines | Found the Drone Emporium 1654 | -10/Mines | Learned location of Zion (-6) 1658 | -10/Mines | Found Prototype Device 1993 | -10/Mines | Escorted by a lone wolf Derelict 2013 | -10/Mines | Learned location of Storage (-8) 2067 | -10/Mines | Deemed a non-threat by the Exiles lab entrance 2069 | -10/Mines | Discovered new exit (range 5) 2078 | -10/Mines | Entered Exiles 2078 | -10/Exiles | Found Exiles lab destroyed 2078 | -10/Exiles | Accompanied by 1 ally 2566 | -10/Exiles | Discovered new exit (range 14) 2594 | -10/Exiles | Entered Mines 2704 | -9/Mines | Discovered new exit (range 3) 2892 | -9/Mines | Assembled infested the area 2942 | -9/Mines | Core integrity fell below 50% 2946 | -9/Mines | Core integrity fell below 20% 2949 | -9/Mines | Destroyed by D-53 Grenadier with Mini Grenade Launcher Last Messages --------------- 02819_ DD-OOH(g): "I have the funny feeling that things are about to get a lot worse around here, see you around!" 02819_ DD-OOH(g) slips back into the shadows. 02819_ K-01 Serf cleans the Core Extractor. 02892_ ALERT: Infestation in the mines, dispatching Demolisher response squad. 02928_ K-01 Serf cleans the Core Extractor. 02937_ C-30 ARC bursts open, deploying its payload. 02937_ D-53 Grenadier unfolds itself. 02937_ Core Extractor disabled. 02937_ K-01 Serf destroyed. 02937_ Hrd. Light Armor Plating destroyed. 02940_ T-07 Excavator destroyed. 02941_ The unstable cave ceiling collapses. 02941_ Wheel destroyed. 02941_ Assault Rifle destroyed. 02942_ Com. Wheel destroyed. 02943_ The unstable cave ceiling collapses. 02947_ Cld. Ion Engine destroyed. 02949_ Lgt. Treads destroyed. Map ----- +----------------------------------------------------+ | ???????????????????????????????????????????# ???? | | ???????????????????????????????????????????# ???? | | ???????????????????????????????????###?????# ???? | | ??????????????????????????????????? ?????# ???? | | ???????????????????????????????????# ????## ##?? | | ????????????????????????????? ????# ????# ##? | | ????????????????????????????# ##### #???# ## | | ????????????????????????????? # #????# # | | ??????????????????????????????$ ##??## | | ???????????????????????????????# #### | | ???????????????????????????????# | | ????????????????????????????????? # | | ???????????????????????????????????# #????# ## | | ??????????????????????????????????## ###### #? | | ?????????????????????????????????## #? | | ????????????????????????????????## ########? | | ????????????????????????????????# ##???????? | | ????????????????????????????????# ##????????? | | ??? ???????????????????????????# ##?????????? | | ???? ??????????????????????????## #??????????? | | ????# ????????????????#######???## #?????????## | | ????# ??????????????## ##?## ##??????## # | | ????? ????????????## ### #?????## | | ????? ???????????# # ####### | | ?????? ??????????# # | | ?????? """ ?????????# @ d u | | ????# """ #????????# d % ### | | ????# """ #???????# ## #?## #### | | ????# ##?????# ## ##??####??? | | ????# ######## ### ##?????????? | | ????# # ## #??????????? | | ????## #### #??????????? | | ?????### ###### #?# ##??????????? | | ???????## #????## ### #???????????? | | ????????## ##?????## ### ##??????????? | | ?????????## ####???????##### #####??????? | | ??????????###???????????????# #####??? | | ????????????????????????????# ##?? | | ????????????????????????????# #?? | | ????????????????????????????## #?? | | ?????????????????????????????## ##?? | | ????????????????################ #??? | | ???????????????? ### ## ##??? | | ???????????????# #?# ##### ##???? | | ???????????????# """ """ """ #?# #???# #????? | | ???????????????# """ """ """ ### #???# #????? | | ???????????????# """ """ """ < #???## ##????? | | ???????????????# #????####?????? | | ???????????????# ######?????????????? | | ???????????????# #??????????????????? | +----------------------------------------------------+ Best States ------------- Heat Dissipation 39 Energy Generation 14 Energy Capacity 280 Matter Stores 300 Matter Capacity 300 Sight Range 16 Terrain Scan Density 10 Armor Coverage 150 Evasion (%) 40 Recoil Reduction 2 Item Schematics ----------------- None Robot Schematics ------------------ None Fabricated ------------ Nothing Repaired ---------- Nothing Alien Tech Used ----------------- None Achievements -------------- None Challenges ------------ None Game ------ Seed DeliveryNullMicroactuators Manual? 0 Play Time 00:11:53 Cumulative 172.2 hours Start 2025.08.17 @ 12:24:15 End 2025.08.17 @ 22:38:54 Sessions 3 Manual Loads 0 Difficulty Rogue Special Mode None Game No. 82 Rogue 82 Adventurer 0 Explorer 0 Win Type - Total 16 Types 4/2/4/1/1/0/0/1/1/2 Lore% 70 Gallery% 68 Achievement% 66 Wizard Run 0 Options --------- Layout 0 ASCII 0 Keyboard 1 Movement Vi Keybinds 0 Fullscreen 2 Font 18/SmallcapsGlow Map View 76x50 Zoom Use 0% Tactical HUD 1 Map Filters NONE Filters NONE Steam 1 RUN: ade7a252-9530-4b53-bd55-7c871340a803